[Event "Rapid Tournament (RAP)"]
[Site "Biel, Switzerland"]
[Date "2026.07.12"]
[Round "9.13"]
[White "Balabayeva, Xeniya"]
[Black "Kukushkin, Ivan"]
[Result "0-1"]
[TimeControl "15 + 5"]
[WhiteTitle "-"]
[BlackTitle "-"]
[WhiteFideId "13719688"]
[BlackFideId "11634103"]
[WhiteElo "2291"]
[BlackElo "2186"]

1. d4 {[%clk 00:15:08]} {[%emt 00:01:33]} d5 {[%clk 00:15:09]} 2. Nf3 {[%clk
00:15:12]} {[%emt 00:00:02]} Nf6 {[%clk 00:15:13]} {[%emt 00:00:01]} 3. Bf4
{[%clk 00:15:16]} {[%emt 00:00:01]} Bf5 {[%clk 00:15:17]} {[%emt 00:00:03]} 4.
e3 {[%clk 00:15:19]} c6 {[%clk 00:15:21]} {[%emt 00:00:01]} 5. c4 {[%clk
00:15:01]} {[%emt 00:00:22]} Nbd7 {[%clk 00:15:12]} {[%emt 00:00:14]} 6. Nc3
{[%clk 00:14:52]} {[%emt 00:00:14]} e6 {[%clk 00:15:13]} {[%emt 00:00:04]} 7.
h3 {[%clk 00:14:47]} {[%emt 00:00:10]} Qb6 {[%clk 00:14:57]} {[%emt 00:00:22]}
8. Qb3 {[%clk 00:14:38]} {[%emt 00:00:13]} Qxb3 {[%clk 00:14:28]} {[%emt
00:00:35]} 9. axb3 {[%clk 00:14:41]} {[%emt 00:00:02]} Bb4 {[%clk 00:14:32]} 10.
Nd2 {[%clk 00:13:58]} {[%emt 00:00:47]} O-O {[%clk 00:14:29]} {[%emt 00:00:09]}
11. O-O-O {[%clk 00:13:16]} {[%emt 00:00:47]} a5 {[%clk 00:14:15]} {[%emt
00:00:20]} 12. Ndb1 {[%clk 00:11:08]} {[%emt 00:02:12]} Ne4 {[%clk 00:13:53]}
{[%emt 00:00:27]} 13. Nxe4 {[%clk 00:10:36]} {[%emt 00:00:37]} Bxe4 {[%clk
00:13:55]} {[%emt 00:00:03]} 14. f3 {[%clk 00:10:32]} {[%emt 00:00:09]} Bg6
{[%clk 00:13:57]} {[%emt 00:00:02]} 15. Bd3 {[%clk 00:10:08]} {[%emt 00:00:29]}
Bxd3 {[%clk 00:13:56]} {[%emt 00:00:06]} 16. Rxd3 {[%clk 00:10:11]} {[%emt
00:00:02]} a4 {[%clk 00:13:59]} {[%emt 00:00:02]} 17. Kc2 {[%clk 00:06:00]}
{[%emt 00:04:16]} Be7 {[%clk 00:13:07]} {[%emt 00:00:58]} 18. cxd5 {[%clk
00:05:43]} {[%emt 00:00:22]} cxd5 {[%clk 00:13:07]} {[%emt 00:00:05]} 19. bxa4
{[%clk 00:05:36]} {[%emt 00:00:12]} Rxa4 {[%clk 00:13:03]} {[%emt 00:00:08]} 20.
Rb3 {[%clk 00:05:39]} {[%emt 00:00:03]} b6 {[%clk 00:12:31]} {[%emt 00:00:37]}
21. Nc3 {[%clk 00:05:36]} {[%emt 00:00:07]} Ra5 {[%clk 00:12:19]} {[%emt
00:00:18]} 22. e4 {[%clk 00:04:44]} {[%emt 00:00:57]} Rc8 {[%clk 00:12:00]}
{[%emt 00:00:24]} 23. Rd1 {[%clk 00:04:21]} {[%emt 00:00:28]} b5 {[%clk
00:11:42]} {[%emt 00:00:23]} 24. Kd3 {[%clk 00:03:41]} {[%emt 00:00:44]} b4
{[%clk 00:11:44]} {[%emt 00:00:04]} 25. Ne2 {[%clk 00:03:41]} {[%emt 00:00:04]}
dxe4+ {[%clk 00:11:39]} {[%emt 00:00:10]} 26. fxe4 {[%clk 00:03:44]} {[%emt
00:00:03]} e5 {[%clk 00:08:40]} {[%emt 00:03:04]} 27. Be3 {[%clk 00:01:54]}
{[%emt 00:01:54]} exd4 {[%clk 00:07:39]} {[%emt 00:01:06]} 28. Bxd4 {[%clk
00:01:57]} {[%emt 00:00:02]} Rd8 {[%clk 00:05:47]} {[%emt 00:01:59]} 29. Kc2
{[%clk 00:01:27]} {[%emt 00:00:34]} Ra6 {[%clk 00:05:33]} {[%emt 00:00:19]} 30.
Rbd3 {[%clk 00:01:16]} {[%emt 00:00:16]} Rc8+ {[%clk 00:05:12]} {[%emt
00:00:27]} 31. Kb1 {[%clk 00:01:03]} {[%emt 00:00:17]} Nf8 {[%clk 00:04:35]}
{[%emt 00:00:42]} 32. Nf4 {[%clk 00:00:58]} {[%emt 00:00:10]} Ne6 {[%clk
00:04:36]} {[%emt 00:00:04]} 33. Nd5 {[%clk 00:00:43]} {[%emt 00:00:19]} Bf8
{[%clk 00:04:36]} {[%emt 00:00:05]} 34. Bf2 {[%clk 00:00:32]} {[%emt 00:00:16]}
h5 {[%clk 00:04:24]} {[%emt 00:00:18]} 35. Be1 {[%clk 00:00:08]} {[%emt
00:00:29]} Rc4 {[%clk 00:03:28]} {[%emt 00:01:01]} 36. Re3 {[%clk 00:00:06]}
{[%emt 00:00:06]} Bc5 {[%clk 00:02:18]} {[%emt 00:01:16]} 37. Re2 {[%clk
00:00:10]} {[%emt 00:00:01]} b3 {[%clk 00:02:16]} {[%emt 00:00:07]} 38. Nc3
{[%clk 00:00:07]} {[%emt 00:00:08]} Bd4 {[%clk 00:01:58]} {[%emt 00:00:23]} 39.
Kc1 {[%clk 00:00:07]} {[%emt 00:00:04]} Nf4 {[%clk 00:01:57]} {[%emt 00:00:06]}
40. Rf2 {[%clk 00:00:07]} {[%emt 00:00:05]} Bxf2 {[%clk 00:01:55]} {[%emt
00:00:08]} 41. Bxf2 {[%clk 00:00:11]} Ne2+ {[%clk 00:01:51]} {[%emt 00:00:09]}
42. Kd2 {[%clk 00:00:12]} {[%emt 00:00:04]} Nxc3 {[%clk 00:01:54]} {[%emt
00:00:02]} 43. bxc3 {[%clk 00:00:15]} {[%emt 00:00:01]} Rxe4 {[%clk 00:01:55]}
{[%emt 00:00:05]} 44. Kd3 {[%clk 00:00:11]} {[%emt 00:00:10]} Rd6+ {[%clk
00:01:57]} {[%emt 00:00:02]} 45. Bd4 {[%clk 00:00:14]} Re8 {[%clk 00:01:46]}
{[%emt 00:00:17]} 46. Rb1 {[%clk 00:00:17]} {[%emt 00:00:02]} Rb8 {[%clk
00:01:49]} {[%emt 00:00:02]} 47. Rb2 {[%clk 00:00:18]} {[%emt 00:00:04]} Ra6
{[%clk 00:01:51]} {[%emt 00:00:02]} 48. c4 {[%clk 00:00:21]} {[%emt 00:00:02]}
Ra4 {[%clk 00:01:51]} {[%emt 00:00:06]} 49. Be3 {[%clk 00:00:07]} {[%emt
00:00:19]} f6 {[%clk 00:01:31]} {[%emt 00:00:25]} 50. c5 {[%clk 00:00:10]}
{[%emt 00:00:02]} Kf7 {[%clk 00:01:33]} {[%emt 00:00:03]} 51. Bf4 {[%clk
00:00:12]} {[%emt 00:00:02]} Rxf4 {[%clk 00:01:36]} {[%emt 00:00:02]} 0-1

[Event "Rapid Tournament (RAP)"]
[Site "Biel, Switzerland"]
[Date "2026.07.12"]
[Round "9.14"]
[White "Hashem, Khaled"]
[Black "Frey, Fabian"]
[Result "1/2-1/2"]
[TimeControl "15 + 5"]
[WhiteTitle "-"]
[BlackTitle "-"]
[WhiteFideId "10300201"]
[BlackFideId "1336487"]
[WhiteElo "1926"]
[BlackElo "2207"]

1. d4 {[%clk 00:15:09]} d5 {[%clk 00:15:06]} {[%emt 00:00:06]} 2. Nf3 {[%clk
00:15:13]} e6 {[%clk 00:15:09]} 3. g3 {[%clk 00:15:18]} c5 {[%clk 00:15:13]}
{[%emt 00:00:01]} 4. Bg2 {[%clk 00:15:14]} {[%emt 00:00:09]} Nc6 {[%clk
00:15:16]} {[%emt 00:00:02]} 5. O-O {[%clk 00:15:18]} {[%emt 00:00:01]} Nf6
{[%clk 00:15:08]} {[%emt 00:00:12]} 6. a3 {[%clk 00:15:22]} {[%emt 00:00:02]}
a5 {[%clk 00:15:05]} {[%emt 00:00:08]} 7. h3 {[%clk 00:14:27]} {[%emt
00:01:00]} cxd4 {[%clk 00:14:55]} {[%emt 00:00:15]} 8. Nxd4 {[%clk 00:14:30]}
{[%emt 00:00:02]} Bc5 {[%clk 00:14:58]} 9. Be3 {[%clk 00:14:34]} {[%emt
00:00:01]} Qb6 {[%clk 00:14:50]} {[%emt 00:00:14]} 10. c3 {[%clk 00:14:06]}
{[%emt 00:00:34]} O-O {[%clk 00:13:03]} {[%emt 00:01:51]} 11. Nd2 {[%clk
00:13:30]} {[%emt 00:00:41]} e5 {[%clk 00:12:18]} {[%emt 00:00:50]} 12. Nxc6
{[%clk 00:13:16]} {[%emt 00:00:19]} Qxc6 {[%clk 00:11:56]} {[%emt 00:00:28]} 13.
Bxc5 {[%clk 00:12:58]} {[%emt 00:00:22]} Qxc5 {[%clk 00:11:59]} {[%emt
00:00:02]} 14. Nf3 {[%clk 00:12:43]} {[%emt 00:00:20]} Re8 {[%clk 00:11:49]}
{[%emt 00:00:15]} 15. Rc1 {[%clk 00:11:00]} {[%emt 00:01:48]} a4 {[%clk
00:11:53]} {[%emt 00:00:01]} 16. e3 {[%clk 00:10:54]} {[%emt 00:00:11]} Bf5
{[%clk 00:11:51]} {[%emt 00:00:07]} 17. Nh4 {[%clk 00:09:52]} {[%emt 00:01:07]}
Be4 {[%clk 00:11:48]} {[%emt 00:00:09]} 18. Bxe4 {[%clk 00:09:36]} {[%emt
00:00:20]} Nxe4 {[%clk 00:11:51]} {[%emt 00:00:01]} 19. Qe2 {[%clk 00:09:39]}
{[%emt 00:00:03]} Ra6 {[%clk 00:11:47]} {[%emt 00:00:08]} 20. Nf3 {[%clk
00:09:08]} {[%emt 00:00:36]} Rb6 {[%clk 00:11:21]} {[%emt 00:00:32]} 21. Rfd1
{[%clk 00:07:52]} {[%emt 00:01:21]} h6 {[%clk 00:10:57]} {[%emt 00:00:29]} 22.
c4 {[%clk 00:07:50]} {[%emt 00:00:08]} d4 {[%clk 00:10:24]} {[%emt 00:00:37]}
23. Qd3 {[%clk 00:07:32]} {[%emt 00:00:23]} Nf6 {[%clk 00:07:32]} {[%emt
00:02:57]} 24. exd4 {[%clk 00:07:34]} {[%emt 00:00:03]} exd4 {[%clk 00:07:34]}
{[%emt 00:00:03]} 25. Qxd4 {[%clk 00:07:28]} {[%emt 00:00:11]} Qxd4 {[%clk
00:07:34]} {[%emt 00:00:05]} 26. Nxd4 {[%clk 00:06:46]} {[%emt 00:00:47]} Rxb2
{[%clk 00:07:35]} {[%emt 00:00:04]} 27. Rb1 {[%clk 00:06:50]} {[%emt 00:00:01]}
Rxb1 {[%clk 00:07:34]} {[%emt 00:00:06]} 28. Rxb1 {[%clk 00:06:54]} {[%emt
00:00:01]} Re4 {[%clk 00:07:18]} {[%emt 00:00:20]} 29. Nf5 {[%clk 00:05:35]}
{[%emt 00:01:25]} Rxc4 {[%clk 00:07:13]} {[%emt 00:00:10]} 30. Nd6 {[%clk
00:02:52]} {[%emt 00:02:49]} Rc3 {[%clk 00:07:09]} {[%emt 00:00:08]} 31. Rxb7
{[%clk 00:02:55]} {[%emt 00:00:02]} Rxa3 {[%clk 00:07:09]} {[%emt 00:00:04]} 32.
Rb8+ {[%clk 00:02:57]} {[%emt 00:00:03]} Kh7 {[%clk 00:07:10]} {[%emt
00:00:04]} 33. Nxf7 {[%clk 00:03:01]} {[%emt 00:00:02]} Ra1+ {[%clk 00:06:29]}
{[%emt 00:00:46]} 34. Kg2 {[%clk 00:03:04]} {[%emt 00:00:02]} Ra2 {[%clk
00:06:23]} {[%emt 00:00:11]} 35. Kf3 {[%clk 00:02:09]} {[%emt 00:01:00]} a3
{[%clk 00:06:22]} {[%emt 00:00:07]} 36. h4 {[%clk 00:02:00]} {[%emt 00:00:13]}
Rb2 {[%clk 00:05:38]} {[%emt 00:00:49]} 37. Ra8 {[%clk 00:01:50]} {[%emt
00:00:15]} Rb7 {[%clk 00:05:37]} {[%emt 00:00:02]} 38. Ne5 {[%clk 00:01:50]}
{[%emt 00:00:09]} Rb3+ {[%clk 00:05:30]} {[%emt 00:00:12]} 39. Kf4 {[%clk
00:01:15]} {[%emt 00:00:40]} Nd5+ {[%clk 00:04:59]} {[%emt 00:00:35]} 40. Kf5
{[%clk 00:01:13]} {[%emt 00:00:07]} Rb2 {[%emt 00:01:41]} 41. f4 {[%clk
00:00:33]} Ne3+ {[%clk 00:01:25]} {[%emt 00:02:49]} 42. Ke4 {[%clk 00:00:16]}
{[%emt 00:00:22]} Rb3 {[%clk 00:01:06]} {[%emt 00:00:24]} 43. h5 {[%clk
00:00:19]} {[%emt 00:00:01]} Ng4 {[%clk 00:00:16]} {[%emt 00:00:54]} 44. Ng6
{[%clk 00:00:17]} {[%emt 00:00:07]} Nf6+ {[%clk 00:00:18]} {[%emt 00:00:03]} 45.
Kf5 {[%clk 00:00:07]} {[%emt 00:00:16]} Rb5+ {[%clk 00:00:17]} {[%emt
00:00:06]} 46. Ke6 {[%clk 00:00:11]} {[%emt 00:00:01]} Nxh5 {[%clk 00:00:16]}
{[%emt 00:00:07]} 47. f5 {[%clk 00:00:13]} {[%emt 00:00:03]} Rb6+ {[%clk
00:00:13]} {[%emt 00:00:07]} 48. Kd5 {[%clk 00:00:14]} {[%emt 00:00:03]} Rxg6
{[%clk 00:00:13]} {[%emt 00:00:05]} 49. fxg6+ {[%clk 00:00:17]} {[%emt
00:00:03]} Kxg6 {[%clk 00:00:18]} 50. Rxa3 {[%clk 00:00:20]} {[%emt 00:00:01]}
Kg5 {[%clk 00:00:22]} 51. Ke6 {[%clk 00:00:19]} {[%emt 00:00:06]} Kg4 {[%clk
00:00:10]} {[%emt 00:00:17]} 52. Kf7 {[%clk 00:00:22]} {[%emt 00:00:02]} Nxg3
{[%emt 00:00:05]} 53. Kxg7 {[%clk 00:00:23]} {[%emt 00:00:01]} h5 {[%clk
00:00:17]} {[%emt 00:00:01]} 54. Kg6 {[%clk 00:00:24]} {[%emt 00:00:03]} h4
{[%clk 00:00:21]} {[%emt 00:00:02]} 55. Ra4+ {[%clk 00:00:19]} {[%emt
00:00:11]} Kh3 {[%clk 00:00:22]} {[%emt 00:00:03]} 56. Kg5 {[%clk 00:00:19]}
{[%emt 00:00:04]} Kg2 {[%clk 00:00:26]} {[%emt 00:00:02]} 57. Kxh4 {[%clk
00:00:19]} {[%emt 00:00:06]} Nf1 {[%clk 00:00:24]} {[%emt 00:00:07]} 58. Ra3
{[%clk 00:00:14]} {[%emt 00:00:10]} Kf2 {[%clk 00:00:26]} {[%emt 00:00:02]} 59.
Kg4 {[%clk 00:00:16]} {[%emt 00:00:03]} Ne3+ {[%clk 00:00:30]} {[%emt
00:00:01]} 60. Kf4 {[%clk 00:00:19]} {[%emt 00:00:02]} Ng2+ {[%clk 00:00:29]}
{[%emt 00:00:05]} 61. Ke4 {[%clk 00:00:24]} {[%emt 00:00:01]} Ne1 {[%clk
00:00:15]} {[%emt 00:00:19]} 62. Ra2+ {[%clk 00:00:24]} {[%emt 00:00:05]} Kg3
{[%clk 00:00:18]} {[%emt 00:00:01]} 63. Re2 {[%clk 00:00:22]} {[%emt 00:00:08]}
Ng2 {[%clk 00:00:21]} {[%emt 00:00:02]} 64. Kf5 {[%clk 00:00:15]} {[%emt
00:00:11]} Kf3 {[%clk 00:00:23]} {[%emt 00:00:04]} 65. Ra2 {[%clk 00:00:18]}
{[%emt 00:00:02]} Ne3+ {[%clk 00:00:27]} {[%emt 00:00:02]} 66. Kg5 {[%clk
00:00:21]} {[%emt 00:00:02]} Ng2 {[%clk 00:00:28]} {[%emt 00:00:03]} 67. Ra3+
{[%clk 00:00:24]} {[%emt 00:00:02]} Ke4 {[%clk 00:00:30]} {[%emt 00:00:03]} 68.
Kg4 {[%clk 00:00:23]} {[%emt 00:00:06]} Ne3 {[%clk 00:00:34]} {[%emt 00:00:01]}
69. Kg3 {[%clk 00:00:25]} {[%emt 00:00:02]} Nf5+ {[%clk 00:00:38]} {[%emt
00:00:02]} 1/2-1/2

[Event "Rapid Tournament (RAP)"]
[Site "Biel, Switzerland"]
[Date "2026.07.12"]
[Round "9.15"]
[White "Aryan, Mehta"]
[Black "Fernandes Barbosa Dos Santos, Gabriel"]
[Result "0-1"]
[TimeControl "15 + 5"]
[WhiteTitle "-"]
[BlackTitle "-"]
[WhiteFideId "33329664"]
[BlackFideId "1354388"]
[WhiteElo "1921"]
[BlackElo "2199"]

1. d4 {[%clk 00:15:09]} Nf6 {[%clk 00:15:07]} {[%emt 00:00:03]} 2. c4 {[%clk
00:15:13]} {[%emt 00:00:03]} e6 {[%clk 00:15:09]} {[%emt 00:00:01]} 3. Nf3
{[%clk 00:15:16]} {[%emt 00:00:01]} d5 {[%clk 00:15:13]} {[%emt 00:00:02]} 4.
Nc3 {[%clk 00:15:18]} {[%emt 00:00:03]} Be7 {[%clk 00:15:16]} 5. Bg5 {[%clk
00:15:22]} {[%emt 00:00:01]} Nbd7 {[%clk 00:15:19]} {[%emt 00:00:03]} 6. e3
{[%clk 00:15:24]} {[%emt 00:00:02]} O-O {[%clk 00:15:21]} {[%emt 00:00:03]} 7.
Rc1 {[%clk 00:15:28]} {[%emt 00:00:02]} h6 {[%clk 00:15:24]} {[%emt 00:00:02]}
8. Bh4 {[%clk 00:15:31]} {[%emt 00:00:01]} dxc4 {[%clk 00:15:19]} {[%emt
00:00:10]} 9. Bxc4 {[%clk 00:15:34]} {[%emt 00:00:02]} a6 {[%clk 00:15:23]}
{[%emt 00:00:02]} 10. a4 {[%clk 00:15:10]} {[%emt 00:00:28]} c5 {[%clk
00:15:24]} {[%emt 00:00:04]} 11. O-O {[%clk 00:15:08]} {[%emt 00:00:07]} cxd4
{[%clk 00:15:27]} {[%emt 00:00:03]} 12. Nxd4 {[%clk 00:14:57]} {[%emt
00:00:15]} Ne5 {[%clk 00:15:08]} {[%emt 00:00:25]} 13. Be2 {[%clk 00:14:48]}
{[%emt 00:00:14]} Bd7 {[%clk 00:15:03]} {[%emt 00:00:11]} 14. Bg3 {[%clk
00:14:39]} {[%emt 00:00:13]} Nc6 {[%clk 00:15:04]} {[%emt 00:00:04]} 15. Bf3
{[%clk 00:14:41]} {[%emt 00:00:02]} Qb6 {[%clk 00:14:49]} {[%emt 00:00:20]} 16.
Nxc6 {[%clk 00:13:19]} {[%emt 00:01:27]} Bxc6 {[%clk 00:14:46]} {[%emt
00:00:09]} 17. Bxc6 {[%clk 00:12:49]} {[%emt 00:00:35]} bxc6 {[%clk 00:14:22]}
{[%emt 00:00:29]} 18. Qe2 {[%clk 00:12:37]} {[%emt 00:00:17]} Rfd8 {[%clk
00:14:10]} {[%emt 00:00:17]} 19. Rfd1 {[%clk 00:12:40]} {[%emt 00:00:02]} Qb4
{[%clk 00:12:19]} {[%emt 00:01:55]} 20. Qc2 {[%clk 00:11:58]} {[%emt 00:00:48]}
Rac8 {[%clk 00:11:58]} {[%emt 00:00:26]} 21. h3 {[%clk 00:11:31]} {[%emt
00:00:31]} c5 {[%clk 00:11:26]} {[%emt 00:00:38]} 22. Rxd8+ {[%clk 00:09:11]}
{[%emt 00:02:25]} Rxd8 {[%clk 00:11:21]} {[%emt 00:00:10]} 23. Be5 {[%clk
00:08:23]} {[%emt 00:00:53]} Nd7 {[%clk 00:10:44]} {[%emt 00:00:42]} 24. Bc7
{[%clk 00:08:14]} {[%emt 00:00:13]} Rc8 {[%clk 00:10:46]} {[%emt 00:00:04]} 25.
Bg3 {[%clk 00:08:14]} {[%emt 00:00:03]} Nb6 {[%clk 00:09:55]} {[%emt 00:00:58]}
26. Rd1 {[%clk 00:06:04]} {[%emt 00:02:15]} Bf6 {[%clk 00:09:42]} {[%emt
00:00:18]} 27. Rd6 {[%clk 00:05:07]} {[%emt 00:01:02]} Nc4 {[%clk 00:08:06]}
{[%emt 00:01:42]} 28. Rxa6 {[%clk 00:05:05]} {[%emt 00:00:06]} Qb7 {[%clk
00:08:09]} {[%emt 00:00:02]} 29. Rd6 {[%clk 00:03:36]} {[%emt 00:01:34]} Nxd6
{[%clk 00:08:12]} {[%emt 00:00:02]} 30. Bxd6 {[%clk 00:03:39]} {[%emt
00:00:01]} c4 {[%clk 00:08:09]} {[%emt 00:00:09]} 31. e4 {[%clk 00:01:25]}
{[%emt 00:02:20]} Qb3 {[%clk 00:08:01]} {[%emt 00:00:12]} 32. Qc1 {[%clk
00:00:43]} {[%emt 00:00:46]} Bxc3 {[%clk 00:07:45]} {[%emt 00:00:21]} 33. bxc3
{[%clk 00:00:46]} {[%emt 00:00:02]} Qxa4 {[%clk 00:07:31]} {[%emt 00:00:20]} 34.
Qf4 {[%clk 00:00:26]} {[%emt 00:00:25]} Qa1+ {[%clk 00:07:22]} {[%emt
00:00:13]} 35. Kh2 {[%clk 00:00:28]} {[%emt 00:00:03]} Qxc3 {[%clk 00:06:48]}
{[%emt 00:00:39]} 36. Be5 {[%clk 00:00:33]} Qb4 {[%clk 00:06:46]} {[%emt
00:00:07]} 37. Qg4 {[%clk 00:00:21]} {[%emt 00:00:17]} Qf8 {[%clk 00:06:48]}
{[%emt 00:00:03]} 38. Bc3 {[%clk 00:00:22]} {[%emt 00:00:03]} Rc6 {[%clk
00:06:38]} {[%emt 00:00:15]} 39. Qf3 {[%clk 00:00:14]} {[%emt 00:00:14]} Qd6+
{[%clk 00:06:37]} {[%emt 00:00:06]} 40. e5 {[%clk 00:00:11]} {[%emt 00:00:07]}
Qd5 {[%clk 00:06:37]} {[%emt 00:00:06]} 41. Qg4 {[%clk 00:00:06]} {[%emt
00:00:10]} Qd3 {[%clk 00:06:27]} {[%emt 00:00:14]} 42. Bb4 {[%clk 00:00:08]}
{[%emt 00:00:04]} c3 {[%clk 00:06:25]} {[%emt 00:00:07]} 0-1